[Event "*** SCC Grand Prix: Titled Tuesday Blitz"]
[Site "Chess.com"]
[Date "2020.08.25"]
[Round "9"]
[White "ChessicallyInclined"]
[Black "ChelsieMonica"]
[Result "1/2-1/2"]
[WhiteElo "2509"]
[BlackElo "2400"]
[TimeControl "180+1"]
[EndTime "11:48:10 PDT"]
[Termination "Game drawn - insufficient material"]

1. d4 {[%clk 0:03:00.9]} 1... Nf6 {[%clk 0:02:58.6]} 2. c4 {[%clk 0:02:56.9]}
2... e6 {[%clk 0:02:53.7]} 3. Nc3 {[%clk 0:02:57.2]} 3... Bb4 {[%clk 0:02:53.3]}
4. e3 {[%clk 0:02:57.2]} 4... Bxc3+ {[%clk 0:02:54.2]} 5. bxc3 {[%clk
0:02:56.6]} 5... O-O {[%clk 0:02:55.1]} 6. Bd3 {[%clk 0:02:57.2]} 6... Re8
{[%clk 0:02:55.7]} 7. e4 {[%clk 0:02:53.2]} 7... d5 {[%clk 0:02:56.6]} 8. e5
{[%clk 0:02:50]} 8... Ne4 {[%clk 0:02:57]} 9. Qc2 {[%clk 0:02:38.4]} 9... f5
{[%clk 0:02:56.1]} 10. exf6 {[%clk 0:02:37.2]} 10... Nxf6 {[%clk 0:02:56.4]} 11.
Nf3 {[%clk 0:02:36.4]} 11... c5 {[%clk 0:02:52.5]} 12. O-O {[%clk 0:02:33.9]}
12... cxd4 {[%clk 0:02:52.2]} 13. cxd4 {[%clk 0:02:34.8]} 13... Nc6 {[%clk
0:02:52.5]} 14. Bg5 {[%clk 0:02:32.2]} 14... Nb4 {[%clk 0:02:51.7]} 15. Qc3
{[%clk 0:02:30.1]} 15... Nxd3 {[%clk 0:02:51.9]} 16. Qxd3 {[%clk 0:02:31]} 16...
dxc4 {[%clk 0:02:51.8]} 17. Qxc4 {[%clk 0:02:30.2]} 17... Qd5 {[%clk 0:02:52.5]}
18. Qb4 {[%clk 0:02:20.7]} 18... b6 {[%clk 0:02:51.3]} 19. Bxf6 {[%clk
0:02:19.7]} 19... gxf6 {[%clk 0:02:51.2]} 20. Rac1 {[%clk 0:02:20.3]} 20... Bb7
{[%clk 0:02:47]} 21. Rc7 {[%clk 0:02:19.3]} 21... Rac8 {[%clk 0:02:47.1]} 22.
Rfc1 {[%clk 0:02:08.2]} 22... Rxc7 {[%clk 0:02:46.3]} 23. Rxc7 {[%clk
0:02:09.1]} 23... Rc8 {[%clk 0:02:45.5]} 24. Qe7 {[%clk 0:01:58.7]} 24... Rxc7
{[%clk 0:02:44.5]} 25. Qxc7 {[%clk 0:01:59.6]} 25... e5 {[%clk 0:02:40.1]} 26.
h3 {[%clk 0:01:34.6]} 26... exd4 {[%clk 0:02:38.7]} 27. Qb8+ {[%clk 0:01:34.2]}
27... Kg7 {[%clk 0:02:38.2]} 28. Qg3+ {[%clk 0:01:31.2]} 28... Kf7 {[%clk
0:02:32.8]} 29. Qc7+ {[%clk 0:01:29.9]} 29... Ke6 {[%clk 0:02:31]} 30. Qxh7
{[%clk 0:01:11.3]} 30... d3 {[%clk 0:02:28.8]} 31. Qh6 {[%clk 0:01:10.9]} 31...
Qxa2 {[%clk 0:02:05.4]} 32. Qe3+ {[%clk 0:00:59.9]} 32... Kf7 {[%clk 0:02:05.6]}
33. Qxd3 {[%clk 0:00:50.7]} 33... Qd5 {[%clk 0:02:04.5]} 34. Qh7+ {[%clk
0:00:50.3]} 34... Ke6 {[%clk 0:02:03.9]} 35. Qg8+ {[%clk 0:00:49.4]} 35... Kd6
{[%clk 0:02:03.9]} 36. Qb8+ {[%clk 0:00:48.5]} 36... Kc6 {[%clk 0:02:03.5]} 37.
Qxa7 {[%clk 0:00:43.1]} 37... Qd1+ {[%clk 0:02:03.6]} 38. Kh2 {[%clk 0:00:43.1]}
38... Qd6+ {[%clk 0:01:59.2]} 39. g3 {[%clk 0:00:41.7]} 39... Kc7 {[%clk
0:01:56.6]} 40. Nh4 {[%clk 0:00:17.8]} 40... Qd1 {[%clk 0:01:47.7]} 41. f3
{[%clk 0:00:12.8]} 41... Qe2+ {[%clk 0:01:45.1]} 42. Kg1 {[%clk 0:00:12.6]}
42... Qe5 {[%clk 0:01:32.7]} 43. Kf2 {[%clk 0:00:09]} 43... Qb2+ {[%clk
0:01:30.1]} 44. Kg1 {[%clk 0:00:08.8]} 44... f5 {[%clk 0:01:29.2]} 45. Ng2
{[%clk 0:00:07.4]} 45... Qe2 {[%clk 0:01:26.1]} 46. Qa4 {[%clk 0:00:05.1]} 46...
Qxf3 {[%clk 0:01:25.2]} 47. Qf4+ {[%clk 0:00:04.9]} 47... Qxf4 {[%clk
0:01:23.2]} 48. Nxf4 {[%clk 0:00:05.8]} 48... Be4 {[%clk 0:01:23.2]} 49. h4
{[%clk 0:00:04.7]} 49... Kd6 {[%clk 0:01:23.8]} 50. h5 {[%clk 0:00:04.8]} 50...
Ke7 {[%clk 0:01:24.5]} 51. Kf2 {[%clk 0:00:04.6]} 51... Kf6 {[%clk 0:01:24.4]}
52. Ke3 {[%clk 0:00:05.4]} 52... Kg5 {[%clk 0:01:24.8]} 53. Kd4 {[%clk
0:00:05.8]} 53... b5 {[%clk 0:01:24.2]} 54. Kc5 {[%clk 0:00:06.1]} 54... Bf3
{[%clk 0:01:21.9]} 55. Kxb5 {[%clk 0:00:06]} 55... Bxh5 {[%clk 0:01:22.2]} 56.
Kc5 {[%clk 0:00:06.3]} 56... Bf7 {[%clk 0:01:21.8]} 57. Kd4 {[%clk 0:00:06.3]}
57... Kg4 {[%clk 0:01:21.9]} 58. Ne2 {[%clk 0:00:06.7]} 58... Kf3 {[%clk
0:01:19.5]} 59. Nc3 {[%clk 0:00:02.7]} 59... Kxg3 {[%clk 0:01:19]} 60. Ke5
{[%clk 0:00:03.3]} 60... Bg6 {[%clk 0:01:18.7]} 61. Ne2+ {[%clk 0:00:03.3]}
61... Kg4 {[%clk 0:01:16.9]} 62. Nf4 {[%clk 0:00:04.2]} 62... Bh7 {[%clk
0:01:17]} 63. Ne6 {[%clk 0:00:04.3]} 63... Bg8 {[%clk 0:01:16.3]} 64. Nf4 {[%clk
0:00:04.2]} 64... Bf7 {[%clk 0:01:16.3]} 65. Ne2 {[%clk 0:00:04.7]} 65... Bc4
{[%clk 0:01:15.9]} 66. Nf4 {[%clk 0:00:05.3]} 66... Bb5 {[%clk 0:01:14.9]} 67.
Ne6 {[%clk 0:00:05.6]} 67... Ba6 {[%clk 0:01:13.8]} 68. Nf4 {[%clk 0:00:06.2]}
68... Bc4 {[%clk 0:01:14.1]} 69. Ng6 {[%clk 0:00:06]} 69... Kg5 {[%clk
0:01:14.6]} 70. Nf4 {[%clk 0:00:06.5]} 70... Kg4 {[%clk 0:01:14]} 71. Ng2 {[%clk
0:00:06.9]} 71... Bd3 {[%clk 0:01:12.3]} 72. Nf4 {[%clk 0:00:07.3]} 72... Be4
{[%clk 0:01:13.2]} 73. Ne6 {[%clk 0:00:07.6]} 73... Kf3 {[%clk 0:01:13]} 74.
Ng5+ {[%clk 0:00:07.5]} 74... Ke3 {[%clk 0:01:12.9]} 75. Ne6 {[%clk 0:00:07.9]}
75... Bb1 {[%clk 0:01:12.3]} 76. Nf4 {[%clk 0:00:08]} 76... Bc2 {[%clk
0:01:11.3]} 77. Ne6 {[%clk 0:00:08.3]} 77... Kf3 {[%clk 0:01:11.6]} 78. Nd4+
{[%clk 0:00:08.2]} 78... Kg4 {[%clk 0:01:12]} 79. Nxc2 {[%clk 0:00:08.5]} 79...
f4 {[%clk 0:01:12]} 80. Ke4 {[%clk 0:00:09]} 80... f3 {[%clk 0:01:12.9]} 81. Ke3
{[%clk 0:00:09]} 81... Kg3 {[%clk 0:01:13.4]} 82. Nd4 {[%clk 0:00:06.6]} 82...
f2 {[%clk 0:01:14]} 83. Ne2+ {[%clk 0:00:06.4]} 83... Kg2 {[%clk 0:01:14.2]} 84.
Nf4+ {[%clk 0:00:06.8]} 84... Kg1 {[%clk 0:01:14.2]} 85. Nh3+ {[%clk 0:00:07.1]}
85... Kf1 {[%clk 0:01:14.7]} 86. Nxf2 {[%clk 0:00:08]} 1/2-1/2

[Event "*** SCC Grand Prix: Titled Tuesday Blitz"]
[Site "Chess.com"]
[Date "2020.08.25"]
[Round "9"]
[White "AlexeiShirov"]
[Black "vinniethepooh"]
[Result "1/2-1/2"]
[WhiteElo "2739"]
[BlackElo "2680"]
[TimeControl "180+1"]
[EndTime "11:48:11 PDT"]
[Termination "Game drawn - insufficient material"]

1. e4 {[%clk 0:03:00.9]} 1... c5 {[%clk 0:03:00.4]} 2. Nf3 {[%clk 0:03:00.1]}
2... d6 {[%clk 0:03:00.9]} 3. d4 {[%clk 0:02:59.6]} 3... cxd4 {[%clk 0:03:01.8]}
4. Nxd4 {[%clk 0:02:59.5]} 4... Nf6 {[%clk 0:03:02.3]} 5. Nc3 {[%clk 0:02:59.5]}
5... a6 {[%clk 0:03:02.8]} 6. h3 {[%clk 0:02:59]} 6... e6 {[%clk 0:03:02.7]} 7.
g4 {[%clk 0:02:58.4]} 7... d5 {[%clk 0:03:03.3]} 8. exd5 {[%clk 0:02:56.1]} 8...
Nxd5 {[%clk 0:03:04.2]} 9. Nde2 {[%clk 0:02:56]} 9... Nc6 {[%clk 0:03:04.6]} 10.
Bg2 {[%clk 0:02:55.4]} 10... Nxc3 {[%clk 0:03:04.7]} 11. Qxd8+ {[%clk
0:02:53.5]} 11... Nxd8 {[%clk 0:03:05.6]} 12. Nxc3 {[%clk 0:02:53.3]} 12... Bd7
{[%clk 0:03:06.5]} 13. Be3 {[%clk 0:02:38.1]} 13... Bc6 {[%clk 0:03:06.7]} 14.
Bxc6+ {[%clk 0:02:36.9]} 14... Nxc6 {[%clk 0:03:07.6]} 15. O-O-O {[%clk
0:02:36.7]} 15... Be7 {[%clk 0:03:00.2]} 16. Ne4 {[%clk 0:02:33.5]} 16... Rd8
{[%clk 0:02:49.6]} 17. c4 {[%clk 0:02:26.1]} 17... f5 {[%clk 0:02:46.9]} 18.
gxf5 {[%clk 0:02:24.9]} 18... exf5 {[%clk 0:02:47]} 19. Nc3 {[%clk 0:02:24.5]}
19... O-O {[%clk 0:02:37.5]} 20. Nd5 {[%clk 0:02:18.7]} 20... Bd6 {[%clk
0:02:34.8]} 21. c5 {[%clk 0:02:10.1]} 21... Bb8 {[%clk 0:02:32]} 22. Bg5 {[%clk
0:02:03.6]} 22... Rde8 {[%clk 0:02:27.5]} 23. Rhe1 {[%clk 0:02:01.2]} 23... Ne5
{[%clk 0:02:26.1]} 24. Kc2 {[%clk 0:01:56.1]} 24... Nf3 {[%clk 0:01:53.8]} 25.
Rxe8 {[%clk 0:01:54.4]} 25... Rxe8 {[%clk 0:01:54.7]} 26. Be3 {[%clk 0:01:52.9]}
26... Kf7 {[%clk 0:01:51.4]} 27. b4 {[%clk 0:01:48.2]} 27... g5 {[%clk
0:01:50.4]} 28. Nc3 {[%clk 0:01:28.4]} 28... f4 {[%clk 0:01:47]} 29. Bc1 {[%clk
0:01:28]} 29... Be5 {[%clk 0:01:42.1]} 30. a4 {[%clk 0:01:22.2]} 30... Nd4+
{[%clk 0:01:38.7]} 31. Kd3 {[%clk 0:01:20.9]} 31... Nc6 {[%clk 0:00:36.6]} 32.
Kc4 {[%clk 0:01:15.3]} 32... Bxc3 {[%clk 0:00:33.3]} 33. Kxc3 {[%clk 0:01:14.7]}
33... Re4 {[%clk 0:00:25.2]} 34. b5 {[%clk 0:01:11.9]} 34... axb5 {[%clk
0:00:26.1]} 35. axb5 {[%clk 0:01:09]} 35... Na7 {[%clk 0:00:26.2]} 36. Rd7+
{[%clk 0:01:05.6]} 36... Re7 {[%clk 0:00:26.4]} 37. Rxe7+ {[%clk 0:01:02.6]}
37... Kxe7 {[%clk 0:00:27.3]} 38. Kc4 {[%clk 0:01:01.8]} 38... Kd7 {[%clk
0:00:20]} 39. Bb2 {[%clk 0:00:57.6]} 39... h5 {[%clk 0:00:18]} 40. f3 {[%clk
0:00:56]} 40... Nc8 {[%clk 0:00:09.9]} 41. Bf6 {[%clk 0:00:54.1]} 41... g4
{[%clk 0:00:09]} 42. hxg4 {[%clk 0:00:51.9]} 42... hxg4 {[%clk 0:00:09.9]} 43.
fxg4 {[%clk 0:00:50.9]} 43... f3 {[%clk 0:00:08.7]} 44. Kd3 {[%clk 0:00:47.6]}
44... Ke6 {[%clk 0:00:08.9]} 45. Bd8 {[%clk 0:00:36.2]} 45... Kd5 {[%clk
0:00:06.1]} 46. g5 {[%clk 0:00:35.1]} 46... Ke6 {[%clk 0:00:01.7]} 47. g6 {[%clk
0:00:30]} 47... Na7 {[%clk 0:00:01.5]} 48. b6 {[%clk 0:00:28.1]} 48... Nc6
{[%clk 0:00:01.4]} 49. Ke3 {[%clk 0:00:23.9]} 49... Nxd8 {[%clk 0:00:01.4]} 50.
Kxf3 {[%clk 0:00:22.8]} 50... Kf6 {[%clk 0:00:01.7]} 51. Ke4 {[%clk 0:00:21.4]}
51... Kxg6 {[%clk 0:00:02.2]} 52. Kd5 {[%clk 0:00:20.3]} 52... Kf7 {[%clk
0:00:02.6]} 53. Kd6 {[%clk 0:00:19.8]} 53... Ke8 {[%clk 0:00:03.1]} 54. Kc7
{[%clk 0:00:18.9]} 54... Ke7 {[%clk 0:00:03.5]} 55. c6 {[%clk 0:00:17.6]} 55...
bxc6 {[%clk 0:00:03.4]} 56. b7 {[%clk 0:00:17.5]} 56... Nxb7 {[%clk 0:00:03.7]}
57. Kxc6 {[%clk 0:00:17.5]} 1/2-1/2

[Event "*** SCC Grand Prix: Titled Tuesday Blitz"]
[Site "Chess.com"]
[Date "2020.08.25"]
[Round "9"]
[White "HrvojeZagreb"]
[Black "zmeeed67"]
[Result "1/2-1/2"]
[WhiteElo "2174"]
[BlackElo "2398"]
[TimeControl "180+1"]
[EndTime "11:48:11 PDT"]
[Termination "Game drawn - insufficient material"]

1. d4 {[%clk 0:01:36]} 1... Nc6 {[%clk 0:02:58.1]} 2. Bf4 {[%clk 0:01:35.2]}
2... d6 {[%clk 0:02:58]} 3. Nf3 {[%clk 0:01:33.4]} 3... Bg4 {[%clk 0:02:57.4]}
4. Nbd2 {[%clk 0:01:31.1]} 4... e6 {[%clk 0:02:57]} 5. h3 {[%clk 0:01:30.5]}
5... Bh5 {[%clk 0:02:56.6]} 6. g4 {[%clk 0:01:28.5]} 6... Bg6 {[%clk 0:02:56.2]}
7. Bg2 {[%clk 0:01:28.1]} 7... h6 {[%clk 0:02:55.3]} 8. O-O {[%clk 0:01:25]}
8... Nf6 {[%clk 0:02:52.5]} 9. Re1 {[%clk 0:01:21.8]} 9... Ne4 {[%clk
0:02:46.9]} 10. Nxe4 {[%clk 0:01:14.1]} 10... Bxe4 {[%clk 0:02:46.3]} 11. c3
{[%clk 0:01:12.7]} 11... Be7 {[%clk 0:02:44]} 12. Qb3 {[%clk 0:01:11.7]} 12...
Rb8 {[%clk 0:02:39.4]} 13. Bg3 {[%clk 0:01:05.4]} 13... O-O {[%clk 0:02:37.4]}
14. Nd2 {[%clk 0:01:04.6]} 14... Bxg2 {[%clk 0:02:36.8]} 15. Kxg2 {[%clk
0:01:05.5]} 15... a6 {[%clk 0:02:24.2]} 16. e4 {[%clk 0:01:04.8]} 16... e5
{[%clk 0:02:20.7]} 17. d5 {[%clk 0:00:56.9]} 17... Na7 {[%clk 0:02:16.6]} 18. f4
{[%clk 0:00:46.4]} 18... exf4 {[%clk 0:02:13.5]} 19. Bxf4 {[%clk 0:00:47.3]}
19... Bg5 {[%clk 0:02:12.6]} 20. Rf1 {[%clk 0:00:44.9]} 20... Nc8 {[%clk
0:02:07.6]} 21. c4 {[%clk 0:00:38.4]} 21... Bxf4 {[%clk 0:01:58.4]} 22. Rxf4
{[%clk 0:00:37.5]} 22... Ne7 {[%clk 0:01:58.9]} 23. Raf1 {[%clk 0:00:29.7]}
23... Ng6 {[%clk 0:01:59.2]} 24. R4f2 {[%clk 0:00:25.6]} 24... Qe7 {[%clk
0:01:53.3]} 25. Qg3 {[%clk 0:00:23]} 25... Rbe8 {[%clk 0:01:51.1]} 26. Kh1
{[%clk 0:00:19.5]} 26... Qe5 {[%clk 0:01:49.1]} 27. Qxe5 {[%clk 0:00:17.7]}
27... Rxe5 {[%clk 0:01:47.6]} 28. b3 {[%clk 0:00:15.7]} 28... Re7 {[%clk
0:01:39.6]} 29. Kg2 {[%clk 0:00:15.6]} 29... Rfe8 {[%clk 0:01:37.5]} 30. Kg3
{[%clk 0:00:15]} 30... Ne5 {[%clk 0:01:34.6]} 31. h4 {[%clk 0:00:14.6]} 31...
Nd3 {[%clk 0:01:27.9]} 32. Rf5 {[%clk 0:00:14.3]} 32... Nc5 {[%clk 0:01:26.5]}
33. R1f4 {[%clk 0:00:12.6]} 33... f6 {[%clk 0:01:11.2]} 34. g5 {[%clk
0:00:11.7]} 34... hxg5 {[%clk 0:01:09.1]} 35. hxg5 {[%clk 0:00:11.5]} 35...
Nxe4+ {[%clk 0:01:08.8]} 36. Nxe4 {[%clk 0:00:11.2]} 36... Rxe4 {[%clk 0:01:09]}
37. gxf6 {[%clk 0:00:11.7]} 37... gxf6 {[%clk 0:00:49.8]} 38. Rxf6 {[%clk
0:00:12.6]} 38... Rxf4 {[%clk 0:00:49.2]} 39. Kxf4 {[%clk 0:00:12]} 39... Re2
{[%clk 0:00:48]} 40. Re6 {[%clk 0:00:09.8]} 40... Rxa2 {[%clk 0:00:42.3]} 41.
Re7 {[%clk 0:00:09]} 41... Rb2 {[%clk 0:00:39.4]} 42. Rxc7 {[%clk 0:00:08.9]}
42... Rxb3 {[%clk 0:00:39.4]} 43. Kf5 {[%clk 0:00:09.2]} 43... a5 {[%clk
0:00:38.5]} 44. Ke6 {[%clk 0:00:09.2]} 44... a4 {[%clk 0:00:38.3]} 45. Kxd6
{[%clk 0:00:09]} 45... a3 {[%clk 0:00:37.5]} 46. Rc8+ {[%clk 0:00:02.2]} 46...
Kf7 {[%clk 0:00:37.9]} 47. Ra8 {[%clk 0:00:03.1]} 47... Rd3 {[%clk 0:00:31.5]}
48. c5 {[%clk 0:00:03]} 48... Kf6 {[%clk 0:00:30.4]} 49. Ra7 {[%clk 0:00:02.9]}
49... Kf5 {[%clk 0:00:27.1]} 50. Rxb7 {[%clk 0:00:02.7]} 50... Ke4 {[%clk
0:00:27.1]} 51. Ra7 {[%clk 0:00:01.8]} 51... Rxd5+ {[%clk 0:00:26.2]} 52. Kc6
{[%clk 0:00:02.5]} 52... Rd3 {[%clk 0:00:26.4]} 53. Kc7 {[%clk 0:00:02.3]} 53...
Kd4 {[%clk 0:00:26.7]} 54. c6 {[%clk 0:00:02.7]} 54... Rc3 {[%clk 0:00:27.1]}
55. Kd7 {[%clk 0:00:02.5]} 55... Kd3 {[%clk 0:00:21.7]} 56. c7 {[%clk
0:00:03.4]} 56... Kc2 {[%clk 0:00:21.1]} 57. c8=Q {[%clk 0:00:03.9]} 57... Rxc8
{[%clk 0:00:20.7]} 58. Kxc8 {[%clk 0:00:04.8]} 58... Kb2 {[%clk 0:00:20.6]} 59.
Rxa3 {[%clk 0:00:05]} 59... Kxa3 {[%clk 0:00:20.3]} 1/2-1/2

[Event "*** SCC Grand Prix: Titled Tuesday Blitz"]
[Site "Chess.com"]
[Date "2020.08.25"]
[Round "9"]
[White "SzMM19"]
[Black "Duong57"]
[Result "0-1"]
[WhiteElo "2513"]
[BlackElo "2385"]
[TimeControl "180+1"]
[EndTime "11:48:12 PDT"]
[Termination "Duong57 won by resignation"]

1. e4 {[%clk 0:03:00.9]} 1... c5 {[%clk 0:03:00]} 2. c4 {[%clk 0:03:00.9]} 2...
Nc6 {[%clk 0:02:58.9]} 3. Nc3 {[%clk 0:03:01.8]} 3... e6 {[%clk 0:02:57.6]} 4.
g3 {[%clk 0:03:02.2]} 4... g6 {[%clk 0:02:57.5]} 5. Bg2 {[%clk 0:03:02.7]} 5...
Bg7 {[%clk 0:02:58]} 6. Nge2 {[%clk 0:03:03.6]} 6... d6 {[%clk 0:02:58.2]} 7.
O-O {[%clk 0:03:04.2]} 7... Nge7 {[%clk 0:02:58.5]} 8. d3 {[%clk 0:03:04.8]}
8... O-O {[%clk 0:02:58.4]} 9. Rb1 {[%clk 0:03:05.4]} 9... Rb8 {[%clk
0:02:53.7]} 10. a3 {[%clk 0:03:05.8]} 10... Nd4 {[%clk 0:02:34.6]} 11. b4 {[%clk
0:03:05.2]} 11... b6 {[%clk 0:02:33.9]} 12. Be3 {[%clk 0:03:04.8]} 12... Bb7
{[%clk 0:02:19.3]} 13. Qd2 {[%clk 0:03:04.9]} 13... Nec6 {[%clk 0:02:14.7]} 14.
Bh6 {[%clk 0:03:03]} 14... Nxe2+ {[%clk 0:02:14]} 15. Nxe2 {[%clk 0:03:02.9]}
15... Nd4 {[%clk 0:02:14.1]} 16. Bxg7 {[%clk 0:03:02.6]} 16... Kxg7 {[%clk
0:02:14.5]} 17. Nxd4 {[%clk 0:03:02.4]} 17... cxd4 {[%clk 0:02:14.7]} 18. Qb2
{[%clk 0:03:01]} 18... e5 {[%clk 0:02:15]} 19. f4 {[%clk 0:02:56.3]} 19... f6
{[%clk 0:02:13.3]} 20. Rbc1 {[%clk 0:02:52.9]} 20... Qe7 {[%clk 0:02:10.8]} 21.
Rf2 {[%clk 0:02:50.1]} 21... Rbc8 {[%clk 0:02:09.9]} 22. Rfc2 {[%clk 0:02:50]}
22... Rc7 {[%clk 0:02:08.8]} 23. a4 {[%clk 0:02:46.1]} 23... Rfc8 {[%clk
0:01:52]} 24. Rf2 {[%clk 0:02:45.8]} 24... Bc6 {[%clk 0:01:48.5]} 25. Rcf1
{[%clk 0:02:39]} 25... Rf8 {[%clk 0:01:43.3]} 26. fxe5 {[%clk 0:02:27.7]} 26...
dxe5 {[%clk 0:01:42.8]} 27. a5 {[%clk 0:02:20.1]} 27... Rb7 {[%clk 0:01:22]} 28.
b5 {[%clk 0:02:19.8]} 28... Bd7 {[%clk 0:01:21.2]} 29. a6 {[%clk 0:02:05.7]}
29... Rc7 {[%clk 0:01:20.6]} 30. h4 {[%clk 0:02:06.6]} 30... Be6 {[%clk
0:01:18.9]} 31. Kh2 {[%clk 0:02:06]} 31... Rf7 {[%clk 0:01:04.5]} 32. Qe2 {[%clk
0:02:05.3]} 32... Qd7 {[%clk 0:00:57.9]} 33. Bf3 {[%clk 0:02:01.2]} 33... Qe7
{[%clk 0:00:54.1]} 34. g4 {[%clk 0:01:58]} 34... Bc8 {[%clk 0:00:42.9]} 35. Kg3
{[%clk 0:01:50]} 35... Rd7 {[%clk 0:00:33.4]} 36. Bg2 {[%clk 0:01:50.1]} 36...
Rd8 {[%clk 0:00:33]} 37. Bh3 {[%clk 0:01:49.3]} 37... Rdf8 {[%clk 0:00:33.1]}
38. Qd2 {[%clk 0:01:48.8]} 38... Qd6 {[%clk 0:00:31.8]} 39. Rf3 {[%clk
0:01:48.7]} 39... f5 {[%clk 0:00:29.4]} 40. gxf5 {[%clk 0:01:48]} 40... gxf5
{[%clk 0:00:29.4]} 41. Qe2 {[%clk 0:00:58.6]} 41... f4+ {[%clk 0:00:25.1]} 42.
Kh2 {[%clk 0:00:55]} 42... Bxh3 {[%clk 0:00:24.6]} 43. Rxh3 {[%clk 0:00:53.5]}
43... Kh8 {[%clk 0:00:23.8]} 44. Qh5 {[%clk 0:00:39.1]} 44... Rg7 {[%clk
0:00:20.2]} 45. Rhf3 {[%clk 0:00:34.3]} 45... Rfg8 {[%clk 0:00:14.3]} 46. R1f2
{[%clk 0:00:34.3]} 46... Qf6 {[%clk 0:00:13]} 47. Kh3 {[%clk 0:00:27.2]} 47...
Rg6 {[%clk 0:00:09.1]} 48. Kh2 {[%clk 0:00:12.7]} 48... Rh6 {[%clk 0:00:07]} 49.
Qf5 {[%clk 0:00:11.2]} 49... Rxh4+ {[%clk 0:00:02.8]} 50. Rh3 {[%clk 0:00:11.3]}
50... Rxh3+ {[%clk 0:00:02.7]} 51. Qxh3 {[%clk 0:00:12.2]} 51... Qg5 {[%clk
0:00:02.6]} 52. Qf3 {[%clk 0:00:10]} 52... Qg3+ {[%clk 0:00:02.7]} 53. Kh1
{[%clk 0:00:08.1]} 53... Qh4+ {[%clk 0:00:03.1]} 54. Rh2 {[%clk 0:00:07.2]}
54... Qe1+ {[%clk 0:00:03.1]} 0-1

[Event "*** SCC Grand Prix: Titled Tuesday Blitz"]
[Site "Chess.com"]
[Date "2020.08.25"]
[Round "9"]
[White "K_A_S_T_O_R"]
[Black "Guenplen"]
[Result "1-0"]
[WhiteElo "2729"]
[BlackElo "2875"]
[TimeControl "180+1"]
[EndTime "11:48:14 PDT"]
[Termination "K_A_S_T_O_R won by resignation"]

1. e4 {[%clk 0:03:00.9]} 1... c5 {[%clk 0:02:59.3]} 2. Nf3 {[%clk 0:03:00.4]}
2... e6 {[%clk 0:02:59.7]} 3. d4 {[%clk 0:03:00.9]} 3... cxd4 {[%clk 0:03:00.6]}
4. Nxd4 {[%clk 0:03:01.3]} 4... Nf6 {[%clk 0:03:01.2]} 5. Nc3 {[%clk 0:03:00.6]}
5... Nc6 {[%clk 0:03:01.5]} 6. Ndb5 {[%clk 0:02:59.6]} 6... Bc5 {[%clk
0:03:01.6]} 7. Bf4 {[%clk 0:02:58.6]} 7... O-O {[%clk 0:03:01.8]} 8. Bc7 {[%clk
0:02:58.7]} 8... Qe7 {[%clk 0:03:02.1]} 9. Bd6 {[%clk 0:02:59.3]} 9... Bxd6
{[%clk 0:03:02.5]} 10. Qxd6 {[%clk 0:02:59.2]} 10... Qd8 {[%clk 0:03:03]} 11.
O-O-O {[%clk 0:02:57.5]} 11... a6 {[%clk 0:03:03.2]} 12. Nd4 {[%clk 0:02:50.4]}
12... Na5 {[%clk 0:03:03.3]} 13. f3 {[%clk 0:02:40.6]} 13... b5 {[%clk
0:03:01.5]} 14. g4 {[%clk 0:02:31.9]} 14... Bb7 {[%clk 0:02:44.5]} 15. a3 {[%clk
0:02:11.7]} 15... Qb8 {[%clk 0:02:28.3]} 16. Qg3 {[%clk 0:01:57.4]} 16... Nc6
{[%clk 0:02:15.2]} 17. Nb3 {[%clk 0:01:51.8]} 17... b4 {[%clk 0:01:54.2]} 18.
axb4 {[%clk 0:01:50]} 18... Nxb4 {[%clk 0:01:54.1]} 19. g5 {[%clk 0:01:50]}
19... Nh5 {[%clk 0:01:52.4]} 20. Qxb8 {[%clk 0:01:48.7]} 20... Raxb8 {[%clk
0:01:53.3]} 21. Rxd7 {[%clk 0:01:48.6]} 21... Rfc8 {[%clk 0:01:40.4]} 22. Na5
{[%clk 0:01:32.6]} 22... Ba8 {[%clk 0:01:36.1]} 23. Nc4 {[%clk 0:01:28]} 23...
Bc6 {[%clk 0:01:29.9]} 24. Rd6 {[%clk 0:01:26.2]} 24... Bb5 {[%clk 0:01:24.5]}
25. Nb6 {[%clk 0:01:08.6]} 25... Rc7 {[%clk 0:01:06.1]} 26. Nxb5 {[%clk
0:01:00.1]} 26... Rxc2+ {[%clk 0:01:00.1]} 27. Kb1 {[%clk 0:00:58.4]} 27... axb5
{[%clk 0:01:01]} 28. Rd4 {[%clk 0:00:52.7]} 28... Nc6 {[%clk 0:00:54.4]} 29. Rd6
{[%clk 0:00:48.1]} 29... Rxb6 {[%clk 0:00:44.3]} 30. Kxc2 {[%clk 0:00:42.3]}
30... Nb4+ {[%clk 0:00:44.4]} 31. Kb3 {[%clk 0:00:42.9]} 31... Rxd6 {[%clk
0:00:45.2]} 32. Kxb4 {[%clk 0:00:43.4]} 32... Rd1 {[%clk 0:00:43.6]} 33. Kxb5
{[%clk 0:00:40.1]} 33... Kf8 {[%clk 0:00:33.7]} 34. b4 {[%clk 0:00:40.1]} 34...
Nf4 {[%clk 0:00:33.2]} 35. Kb6 {[%clk 0:00:35.7]} 35... Ke7 {[%clk 0:00:29.8]}
36. b5 {[%clk 0:00:35.8]} 36... Rb1 {[%clk 0:00:22.1]} 37. Kb7 {[%clk
0:00:27.2]} 37... e5 {[%clk 0:00:20.2]} 38. b6 {[%clk 0:00:26.5]} 38... h6
{[%clk 0:00:13.3]} 39. gxh6 {[%clk 0:00:25.9]} 39... gxh6 {[%clk 0:00:14.2]} 40.
Ka7 {[%clk 0:00:25.2]} 40... Ra1+ {[%clk 0:00:14.2]} 41. Kb8 {[%clk 0:00:23.2]}
41... Rb1 {[%clk 0:00:10.8]} 42. b7 {[%clk 0:00:23.6]} 42... h5 {[%clk
0:00:10.8]} 43. Ka7 {[%clk 0:00:23.5]} 43... Ra1+ {[%clk 0:00:10.8]} 44. Ba6
{[%clk 0:00:23.4]} 44... Rxh1 {[%clk 0:00:08.5]} 45. b8=Q {[%clk 0:00:23.7]}
45... Kf6 {[%clk 0:00:06.6]} 46. Qd8+ {[%clk 0:00:22.9]} 46... Kg6 {[%clk
0:00:06.2]} 47. Bc8 {[%clk 0:00:22.5]} 47... Ra1+ {[%clk 0:00:04.1]} 48. Kb6
{[%clk 0:00:22.2]} 48... Rb1+ {[%clk 0:00:04.4]} 49. Ka5 {[%clk 0:00:22.5]}
49... Ra1+ {[%clk 0:00:04.3]} 50. Kb4 {[%clk 0:00:22.9]} 50... Rb1+ {[%clk
0:00:04]} 51. Ka3 {[%clk 0:00:23.2]} 51... Rg1 {[%clk 0:00:04]} 52. Bf5+ {[%clk
0:00:21.3]} 52... Kg7 {[%clk 0:00:04.4]} 53. Qe7 {[%clk 0:00:19.2]} 53... Nd3
{[%clk 0:00:03.4]} 54. Be6 {[%clk 0:00:16.2]} 54... Ra1+ {[%clk 0:00:03.3]} 55.
Kb3 {[%clk 0:00:16]} 55... Rb1+ {[%clk 0:00:02.7]} 56. Kc2 {[%clk 0:00:16.3]}
56... Rb2+ {[%clk 0:00:01.1]} 57. Kxd3 {[%clk 0:00:16]} 1-0